fUST/lending_fUST_20250901
["ID","MTS","AMOUNT","RATE_DAILY","PERIOD"]
[382672118,1756705322670,-614.86338946,0.00014229,2]
[382672119,1756705322702,-325.20322108,0.00014229,2]
[382672120,1756705322831,-154.79677892,0.00014229,2]
[382672121,1756705322869,-483.61291283,0.00014229,2]
[382672122,1756705322899,-483.29225201,0.00014229,2]
[382672123,1756705322930,-482.48106718,0.00014229,2]
[382672124,1756705322963,-952.62,0.00014229,2]
[382672125,1756705323000,-480.0,0.00014229,2]
[382672126,1756705323031,-483.3550606,0.00014229,2]
[382672127,1756705323063,-1163.0,0.00014229,2]
[382672128,1756705323225,-1163.0,0.00014229,2]
[382672129,1756705323256,-480.0,0.00014229,2]
[382672130,1756705323288,-482.92940266,0.00014229,2]
[382672131,1756705323319,-480.0,0.00014229,2]
[382672132,1756705323355,-480.0,0.00014229,2]
[382672133,1756705323387,-480.0,0.00014229,2]
[382672134,1756705323419,-480.0,0.00014229,2]
[382672135,1756705323451,-480.0,0.00014229,2]
[382672136,1756705323484,-334.55119468,0.00014229,2]
[382672137,1756705323620,-279.04880532,0.00014229,2]
[382672138,1756705323652,-480.0,0.00014229,2]
[382672139,1756705323692,-540.11,0.00014229,2]
[382672140,1756705323744,-589.2,0.00014229,2]
[382672141,1756705323776,-480.0,0.00014229,2]
[382672142,1756705323808,-889.83,0.00014229,2]
[382672143,1756705323841,-480.0,0.00014229,2]
[382672144,1756705323873,-480.0,0.00014229,2]
[382672145,1756705323904,-481.4460075,0.00014229,2]
[382672146,1756705323936,-120.74037436,0.00014229,2]
[382672147,1756705326214,-107.08134098,0.00014031,2]
[382672148,1756705326237,-480.0,0.00014031,2]
[382672149,1756705326261,-889.83,0.00014031,2]
[382672150,1756705326289,-160.52231243,0.00014031,2]
[382672151,1756705326308,-480.0,0.00014031,2]
[382672152,1756705326323,-480.0,0.00014031,2]
[382672153,1756705326345,-481.4460075,0.00014031,2]
[382672154,1756705326360,-480.0,0.00014031,2]
[382672155,1756705328733,-168.60608282,0.00014031,2]
[382672156,1756705332637,5329.12839525,0.00013891,2]
[382672157,1756705333079,-152.0,0.00014031,2]
[382672158,1756705340918,-284.90876191,0.00014031,2]
[382672159,1756705341065,2394.79834606,0.00013891,2]
[382672160,1756705344196,-176.52133694,0.00014031,2]
[382672161,1756705345975,-320.61407124,0.00014031,2]
[382672162,1756705348448,-205.77018515,0.00014031,2]
[382672163,1756705350075,-10000.01,0.00014031,2]
[382672164,1756705350262,-10000.01,0.00014031,2]
[382672165,1756705350384,-10000.01,0.00014031,2]
[382672166,1756705350508,-10000.01,0.00014031,2]
[382672167,1756705350656,-10000.01,0.00014031,2]
[382672168,1756705350806,-10000.01,0.00014031,2]
[382672169,1756705350930,-10000.01,0.00014031,2]
[382672170,1756705351066,-10000.01,0.00014031,2]
[382672171,1756705351205,-10000.01,0.00014031,2]
[382672172,1756705351365,-10000.01,0.00014031,2]
[382672173,1756705352160,-184.0,0.00014031,2]
[382672174,1756705354363,-232.12252053,0.00014029,2]
[382672175,1756705357257,1323.81435524,0.00013889,2]
[382672176,1756705358248,-232.11960421,0.00014029,2]
[382672177,1756705359838,-162.42712842,0.00014029,2]
[382672178,1756705361956,-167.30690623,0.00014029,2]
[382672179,1756705367981,-326.37736295,0.00014029,2]
[382672180,1756705368052,10000.0,0.00013182,2]
[382672181,1756705370135,-314.25209458,0.00014029,2]
[382672182,1756705374114,-200.55364376,0.00014029,2]
[382672183,1756705379509,-265.31504505,0.00014029,2]
[382672184,1756705379732,4501.75449106,0.00013889,2]
[382672185,1756705382085,-380.52493116,0.00014029,2]
[382672186,1756705384388,-254.34940245,0.00014029,2]
[382672187,1756705386485,-205.47882809,0.00014029,2]
[382672188,1756705389071,-265.58034545,0.00014029,2]
[382672189,1756705392049,-221.79796346,0.00014029,2]
[382672190,1756705394297,-197.77050349,0.00014029,2]
[382672191,1756705396774,-268.1740201,0.00014029,2]
[382672192,1756705400178,-155.17597698,0.00014029,2]
[382672193,1756705400221,-2287.58747483,0.00014029,2]
[382672194,1756705400251,-200.42170711,0.0001403,2]
[382672195,1756705400281,-500.0,0.0001403,2]
[382672196,1756705400310,-500.0,0.0001403,2]
[382672197,1756705400339,-500.0,0.0001403,2]
[382672198,1756705400370,-500.0,0.0001403,2]
[382672199,1756705400399,-500.0,0.0001403,2]
[382672200,1756705400450,-456.26727533,0.0001403,2]
[382672201,1756705400481,-500.0,0.0001403,2]
[382672202,1756705400510,-500.0,0.0001403,2]
[382672203,1756705400542,-500.0,0.0001403,2]
[382672204,1756705400572,-500.0,0.0001403,2]
[382672205,1756705400606,-500.0,0.0001403,2]
[382672206,1756705400639,-500.0,0.0001403,2]
[382672207,1756705400671,-617.67549696,0.0001403,2]
[382672208,1756705400700,-500.0,0.0001403,2]
[382672209,1756705400734,-352.12445542,0.0001403,2]
[382672210,1756705400869,-147.87554458,0.0001403,2]
[382672211,1756705400899,-500.0,0.0001403,2]
[382672212,1756705400931,-641.12087468,0.0001403,2]
[382672213,1756705400960,-500.0,0.0001403,2]
[382672214,1756705400990,-255.54105322,0.0001403,2]
[382672215,1756705401028,-500.0,0.0001403,2]
[382672216,1756705401060,-500.0,0.0001403,2]
[382672217,1756705401091,-500.0,0.0001403,2]
[382672218,1756705401122,-301.4521909,0.0001403,2]
[382672219,1756705401155,-500.0,0.0001403,2]
[382672220,1756705401186,-500.0,0.0001403,2]
[382672221,1756705401218,-126.594285,0.0001403,2]
[382672222,1756705401373,-54.84210324,0.0001403,2]
[382672223,1756705401404,-500.0,0.0001403,2]
[382672224,1756705401436,-500.0,0.0001403,2]
[382672225,1756705401467,-500.0,0.0001403,2]
[382672226,1756705401501,-530.01446555,0.0001403,2]
[382672227,1756705401534,-530.01446555,0.0001403,2]
[382672228,1756705401568,-530.01446555,0.0001403,2]
[382672229,1756705401601,-530.01446555,0.0001403,2]
[382672230,1756705401635,-530.01446555,0.0001403,2]
[382672231,1756705401670,-530.01446555,0.0001403,2]
[382672232,1756705401705,-0.13774137,0.0001403,2]
[382672233,1756705401842,-529.87672418,0.0001403,2]
[382672234,1756705401877,-530.01446555,0.0001403,2]
[382672235,1756705401913,-530.01446555,0.0001403,2]
[382672236,1756705401948,-530.01446555,0.0001403,2]
[382672237,1756705401985,-530.01446555,0.0001403,2]
[382672238,1756705402021,-411.43658638,0.0001403,2]
[382672239,1756705402057,-500.0,0.0001403,2]
[382672240,1756705402094,-500.0,0.0001403,2]
[382672241,1756705402129,-500.0,0.0001403,2]
[382672242,1756705402165,-355.71684999,0.0001403,2]
[382672243,1756705402268,-165.8339545,0.0001403,2]
[382672244,1756705402302,-300.0,0.0001403,2]
[382672245,1756705403361,-249.28840296,0.00014031,2]
[382672246,1756705403528,-125.53010828,0.00014031,2]
[382672247,1756705403552,-521.55080449,0.00014031,2]
[382672248,1756705403614,-165.8339545,0.00014031,2]
[382672249,1756705403706,-300.0,0.00014031,2]
[382672250,1756705403749,-9068.342091,0.00014031,2]
[382672251,1756705403773,-10000.01,0.00014031,2]
[382672252,1756705403799,-10000.01,0.00014031,2]
[382672253,1756705403822,-10000.01,0.00014031,2]
[382672254,1756705403846,-10000.01,0.00014031,2]
[382672255,1756705404130,2442.76345181,0.00013889,2]
[382672256,1756705405016,-362.85544031,0.00014031,2]
[382672263,1756705408956,-160.0,0.00014031,2]
[382672266,1756705411902,219.88061479,0.0001389,2]
[382672267,1756705413131,-171.33767119,0.0001403,2]
[382672268,1756705415913,-48.5429436,0.0001403,2]
[382672269,1756705415936,-129.18651277,0.00014031,2]
[382672270,1756705417538,151.0,0.00014,2]
[382672271,1756705417931,-545.60076481,0.00014031,2]
[382672272,1756705417969,151.0,0.000136,2]
[382672273,1756705420727,-152.50946757,0.00014031,2]
[382672274,1756705422329,-240.53584913,0.00014031,2]
[382672275,1756705424120,-185.68294368,0.00014031,2]
[382672276,1756705425742,-210.14117784,0.00014031,2]
[382672277,1756705428246,10000.01,0.00013891,2]
[382672278,1756705428273,10000.01,0.00013891,2]
[382672279,1756705428299,10000.01,0.00013891,2]
[382672280,1756705428324,10000.01,0.00013891,2]
[382672281,1756705428351,10000.01,0.00013891,2]
[382672282,1756705428377,10000.01,0.00013891,2]
[382672283,1756705428402,10000.01,0.00013891,2]
[382672284,1756705428429,8093.4055192,0.00013891,2]
[382672285,1756705428802,-263.55803446,0.00014031,2]
[382672286,1756705431135,-216.44196554,0.0001403,2]
[382672287,1756705433143,-211.88242867,0.0001403,2]
[382672288,1756705436292,184.58376515,0.0001389,2]
[382672289,1756705443186,-199.53889576,0.0001403,2]
[382672290,1756705443217,-34.45811228,0.0001403,2]
[382672291,1756705444776,199.53889576,0.0001389,2]
[382672292,1756705448069,-307.19609905,0.0001403,2]
[382672293,1756705451361,-165.26061481,0.0001403,2]
[382672294,1756705451388,-168.85994848,0.0001403,2]
[382672295,1756705452819,398.09812071,0.0001389,2]
[382672296,1756705453203,-63.97755742,0.0001403,2]
[382672297,1756705453228,-167.49623135,0.0001403,2]
[382672298,1756705456519,-163.75024067,0.0001403,2]
[382672299,1756705458960,-242.50788465,0.0001403,2]
[382672300,1756705461556,-163.18205561,0.0001403,2]
[382672301,1756705462344,1124.38369918,0.0001389,2]
[382672302,1756705462369,1095.28373172,0.0001389,2]
[382672303,1756705464295,-276.38497983,0.0001403,2]
[382672304,1756705468893,-216.38463683,0.0001403,2]
[382672305,1756705470857,-170.08125539,0.0001403,2]
[382672306,1756705473734,-80.67172513,0.0001403,2]
[382672307,1756705473760,-107.99827487,0.0001403,2]
[382672308,1756705476751,-274.75314131,0.0001403,2]
[382672309,1756705478724,1204.96450324,0.0001389,2]
[382672310,1756705479531,-227.14,0.0001403,2]
[382672311,1756705482368,-160.93290096,0.0001403,2]
[382672312,1756705484910,-323.88,0.0001403,2]
[382672313,1756705486692,542.13846097,0.0001389,2]
[382672314,1756705486722,-218.25846097,0.0001403,2]
[382672315,1756705486744,-50.31339525,0.0001403,2]
[382672316,1756705489789,-82.1903734,0.0001403,2]
[382672317,1756705489812,-113.59260557,0.0001403,2]
[382672318,1756705490214,-366.40739443,0.0001403,2]
[382672319,1756705491377,-6424.80851521,0.00014031,2]
[382672320,1756705491521,-10000.01,0.00014031,2]
[382672321,1756705492071,-161.94,0.00014031,2]
[382672322,1756705494657,-249.55181704,0.00014031,2]
[382672323,1756705498575,-241.13335249,0.00014031,2]
[382672324,1756705500312,-227.43032654,0.00014031,2]
[382672325,1756705501953,7167.17088074,0.00013891,2]
[382672326,1756705502119,-449.00541887,0.00014031,2]
[382672327,1756705505064,-171.62759792,0.0001403,2]
[382672328,1756705506808,-128.37240208,0.0001403,2]
[382672329,1756705506832,-178.66795783,0.0001403,2]
[382672330,1756705509837,-121.33204217,0.0001403,2]
[382672331,1756705509862,-179.09183265,0.0001403,2]
[382672332,1756705510358,1921.33204217,0.0001389,2]
[382672333,1756705512580,-120.90816735,0.0001403,2]
[382672334,1756705512605,-30.4364212,0.0001403,2]
[382672335,1756705515532,-205.92919851,0.0001403,2]
[382672336,1756705517783,-63.63438029,0.0001403,2]
[382672337,1756705517809,-244.2150399,0.0001403,2]
[382672338,1756705518537,168.38272116,0.0001389,2]
[382672339,1756705520880,-189.3994798,0.0001403,2]
[382672340,1756705523358,-308.43808991,0.0001403,2]
[382672341,1756705527138,743.12435593,0.0001389,2]
[382672342,1756705527373,1419.93354148,0.0001389,2]
[382672343,1756705527531,-206.06024472,0.0001403,2]
[382672344,1756705530025,-191.56099551,0.0001403,2]
[382672345,1756705533014,-60.32615016,0.0001403,2]
[382672346,1756705533045,-90.72160588,0.0001403,2]
[382672347,1756705534557,-318.516387,0.0001403,2]
[382672348,1756705535771,316.86206596,0.0001389,2]
[382672349,1756705537860,-70.76200712,0.0001403,2]
[382672350,1756705537884,-271.70883178,0.0001403,2]
[382672351,1756705543447,-268.83252321,0.00014029,2]
[382672352,1756705544776,308.43808991,0.00013889,2]
[382672353,1756705545744,-300.0,0.00014029,2]
[382672354,1756705549604,-423.34963506,0.00014029,2]
[382672355,1756705549628,-25.06179583,0.0001403,2]
[382672356,1756705552689,-183.22937239,0.0001403,2]
[382672357,1756705552714,-16.77062761,0.0001403,2]
[382672358,1756705553433,261.51896563,0.0001389,2]
[382672359,1756705555583,-153.9573891,0.0001403,2]
[382672360,1756705559151,-179.36419972,0.0001403,2]
[382672361,1756705560793,-129.90778357,0.0001403,2]
[382672362,1756705560818,-292.48481083,0.0001403,2]
[382672363,1756705561617,748.41143089,0.0001389,2]
[382672364,1756705563073,-187.51518917,0.0001403,2]
[382672365,1756705563099,-331.29319948,0.0001403,2]
[382672366,1756705565272,-155.25346835,0.00014029,2]
[382672367,1756705570986,-144.74653165,0.00014029,2]
[382672368,1756705571009,-25.90798997,0.0001403,2]
[382672369,1756705574438,-122.79881055,0.0001403,2]
[382672370,1756705574464,-165.74667619,0.0001403,2]
[382672371,1756705576238,-203.06026371,0.0001403,2]
[382672372,1756705577429,795.94636457,0.0001389,2]
[382672373,1756705577932,-31.1930601,0.0001403,2]
[382672374,1756705577957,-197.36386894,0.0001403,2]
[382672375,1756705580403,-407.57113684,0.0001403,2]
[382672376,1756705585857,381.21323017,0.0001389,2]
[382672377,1756705585893,-178.86528761,0.0001403,2]
[382672378,1756705588240,-148.12970661,0.0001403,2]
[382672379,1756705588263,-34.38244218,0.0001403,2]
[382672380,1756705590114,169.33814378,0.0001393,2]
[382672381,1756705590961,-189.69645233,0.0001403,2]
[382672382,1756705592751,-153.01102579,0.0001403,2]
[382672383,1756705595787,-180.59312173,0.0001403,2]
[382672384,1756705597215,-252.77713597,0.0001403,2]
[382672385,1756705599087,-148.559822,0.0001403,2]
[382672386,1756705599111,-159.34191594,0.0001403,2]
[382672387,1756705601256,431.61719275,0.0001389,2]
[382672388,1756705603093,-298.86982665,0.0001403,2]
[382672389,1756705606127,-21.78825741,0.0001403,2]
[382672390,1756705606154,-184.14094113,0.0001403,2]
[382672391,1756705608316,-295.85905887,0.0001403,2]
[382672392,1756705608342,-13.33309683,0.0001403,2]
[382672393,1756705609170,203.87399798,0.00013929,2]
[382672394,1756705609223,687.31117398,0.0001389,2]
[382672395,1756705611155,-372.00366346,0.0001403,2]
[382672396,1756705613415,-263.80113811,0.0001403,2]
[382672397,1756705615592,-282.76244552,0.0001403,2]
[382672398,1756705618308,-277.8472449,0.0001403,2]
[382672399,1756705625279,300.0,0.00013889,2]
[382672400,1756705633186,266.59370059,0.00013889,2]
[382672401,1756705649937,869.08903674,0.00013889,2]
[382672402,1756705670482,216.95898291,0.00013929,2]
[382672403,1756705695566,6074.19857099,0.00013938,2]
[382672404,1756705760698,203.87399798,0.00013929,2]
[382672405,1756705783989,396.72924733,0.00013447,2]
[382672406,1756705786764,1586.9169893,0.00013447,2]
[382672407,1756705788943,85.64947416,0.00013049,2]
[382672408,1756705788966,580.35052584,0.00013049,2]
[382672409,1756705789283,3570.56322593,0.00013447,2]
[382672410,1756705791163,5849.09624823,0.00013447,2]
[382672411,1756705791187,492.22404101,0.00013447,2]
[382672412,1756705823331,1057.406808,0.00013699,2]
[382672436,1756705832412,-351.94098968,0.00014016,2]
[382672437,1756705832421,-293.66105219,0.00014023,2]
[382672438,1756705832430,-250.0,0.00014023,2]
[382672439,1756705832439,-151.0,0.00014023,2]
[382672440,1756705832449,-250.0,0.00014023,2]
[382672441,1756705832458,-151.0,0.00014023,2]
[382672442,1756705832466,-83.8479487,0.00014023,2]
[382672443,1756705832477,-115.33649339,0.00014023,2]
[382672444,1756705832486,-151.0,0.00014023,2]
[382672445,1756705832495,-250.0,0.00014023,2]
[382672446,1756705832504,-151.0,0.00014023,2]
[382672447,1756705832513,-151.0,0.00014023,2]
[382672448,1756705832522,-287.69838555,0.00014023,2]
[382672449,1756705832531,-151.0,0.00014023,2]
[382672450,1756705832540,-151.0,0.00014023,2]
[382672451,1756705832549,-151.0,0.00014023,2]
[382672452,1756705832558,-288.67352146,0.00014023,2]
[382672453,1756705832567,-151.0,0.00014023,2]
[382672454,1756705832576,-151.0,0.00014023,2]
[382672455,1756705832585,-151.0,0.00014023,2]
[382672456,1756705832594,-151.0,0.00014023,2]
[382672457,1756705832603,-151.0,0.00014023,2]
[382672458,1756705832612,-151.0,0.00014023,2]
[382672459,1756705832620,-1200.0,0.00014029,2]
[382672460,1756705832629,-150.8573272,0.00014029,2]
[382672461,1756705832638,-300.0,0.00014029,2]
[382672462,1756705832647,-1200.0,0.00014029,2]
[382672480,1756705832853,-480.0,0.0001403,2]
[382672482,1756705832863,-533.27541289,0.0001403,2]
[382672484,1756705832872,-480.0,0.0001403,2]
[382672486,1756705832882,-482.81230584,0.0001403,2]
[382672488,1756705832891,-1007.69,0.0001403,2]
[382672491,1756705832901,-480.0,0.0001403,2]
[382672492,1756705832910,-480.0,0.0001403,2]
[382672494,1756705832919,-480.0,0.0001403,2]
[382672496,1756705832929,-481.81904671,0.0001403,2]
[382672498,1756705832938,-480.0,0.0001403,2]
[382672500,1756705832947,-480.0,0.0001403,2]
[382672502,1756705832956,-480.0,0.0001403,2]
[382672504,1756705832965,-480.0,0.0001403,2]
[382672506,1756705832975,-480.0,0.0001403,2]
[382672508,1756705832984,-480.0,0.0001403,2]
[382672510,1756705832993,-724.16,0.0001403,2]
[382672512,1756705833002,-588.81,0.0001403,2]
[382672514,1756705833011,-480.0,0.0001403,2]
[382672516,1756705833021,-480.0,0.0001403,2]
[382672518,1756705833030,-480.0,0.0001403,2]
[382672520,1756705833040,-481.66480232,0.0001403,2]
[382672522,1756705833049,-480.0,0.0001403,2]
[382672524,1756705833058,-1201.71,0.0001403,2]
[382672525,1756705833067,-511.63,0.0001403,2]
[382672527,1756705833077,-480.0,0.0001403,2]
[382672528,1756705833087,-481.82486354,0.0001403,2]
[382672529,1756705833096,-480.0,0.0001403,2]
[382672530,1756705833106,-480.0,0.0001403,2]
[382672531,1756705833115,-482.23772739,0.0001403,2]
[382672532,1756705833133,-2316.86,0.0001403,2]
[382672533,1756705833143,-480.0,0.0001403,2]
[382672535,1756705833153,-480.0,0.0001403,2]
[382672537,1756705833163,-1066.5,0.0001403,2]
[382672539,1756705833174,-1066.5,0.0001403,2]
[382672541,1756705833190,-1066.5,0.0001403,2]
[382672543,1756705833205,-1066.5,0.0001403,2]
[382672545,1756705833218,-1066.5,0.0001403,2]
[382672547,1756705833227,-433.28805066,0.0001403,2]
[382672549,1756705833237,-1066.5,0.0001403,2]
[382672551,1756705833247,-480.0,0.0001403,2]
[382672553,1756705833258,-1066.5,0.0001403,2]
[382672555,1756705833268,-1066.5,0.0001403,2]
[382672557,1756705833277,-1066.5,0.0001403,2]
[382672559,1756705833287,-1066.5,0.0001403,2]
[382672561,1756705833297,-536.9,0.0001403,2]
[382672563,1756705833307,-480.0,0.0001403,2]
[382672565,1756705833316,-500.12,0.0001403,2]
[382672567,1756705833326,-480.0,0.0001403,2]
[382672569,1756705833335,-550.96,0.0001403,2]
[382672571,1756705833345,-1209.8,0.0001403,2]
[382672572,1756705833355,-480.0,0.0001403,2]
[382672574,1756705833365,-480.0,0.0001403,2]
[382672576,1756705833375,-601.47,0.0001403,2]
[382672578,1756705833384,-14.6831417,0.0001403,2]
[382672716,1756705838509,-255.7169101,0.00014029,2]
[382672717,1756705838518,-500.0,0.00014029,2]
[382672718,1756705838528,-201.70775226,0.00014029,2]
[382672719,1756705838537,-202.22155743,0.00014029,2]
[382672720,1756705838546,-465.3168583,0.0001403,2]
[382672721,1756705838555,-480.0,0.0001403,2]
[382672722,1756705838565,-480.0,0.0001403,2]
[382672723,1756705838575,-2093.79,0.0001403,2]
[382672724,1756705838584,-591.69,0.0001403,2]
[382672725,1756705838594,-480.0,0.0001403,2]
[382672726,1756705838603,-482.22866156,0.0001403,2]
[382672727,1756705838613,-688.09,0.0001403,2]
[382672728,1756705838622,-893.1,0.0001403,2]
[382672729,1756705838631,-481.49182011,0.0001403,2]
[382672730,1756705838641,-481.83224873,0.0001403,2]
[382672731,1756705838650,-480.0,0.0001403,2]
[382672733,1756705838659,-1222.02,0.0001403,2]
[382672735,1756705838669,-1814.94,0.0001403,2]
[382672737,1756705838678,-481.86328089,0.0001403,2]
[382672739,1756705838688,-482.5624001,0.0001403,2]
[382672741,1756705838697,-594.12,0.0001403,2]
[382672743,1756705838707,-480.0,0.0001403,2]
[382672745,1756705838716,-480.0,0.0001403,2]
[382672746,1756705838725,-480.0,0.0001403,2]
[382672747,1756705838735,-480.0,0.0001403,2]
[382672748,1756705838744,-480.0,0.0001403,2]
[382672749,1756705838754,-480.0,0.0001403,2]
[382672750,1756705838764,-480.0,0.0001403,2]
[382672751,1756705838773,-976.01,0.0001403,2]
[382672752,1756705838783,-500.0,0.0001403,2]
[382672753,1756705838793,-50000.0,0.0001403,2]
[382672754,1756705838803,-194514.06491908,0.00014031,2]
[382672755,1756705838812,-163.48995646,0.00014031,2]
[382672756,1756705838822,-500.0,0.00014038,2]
[382672757,1756705838832,-6074.19857096,0.00014098,2]
[382672758,1756705839033,-1066.5,0.00014128,2]
[382672759,1756705839042,-211.19111717,0.00014129,2]
[382672760,1756705839052,-775.72,0.00014129,2]
[382672761,1756705839061,-480.0,0.00014129,2]
[382672762,1756705839071,-480.0,0.00014129,2]
[382672763,1756705839081,-661.01,0.00014129,2]
[382672764,1756705839090,-1408.26,0.00014129,2]
[382672765,1756705839099,-5249.77,0.00014129,2]
[382672766,1756705839109,-480.0,0.00014129,2]
[382672767,1756705839118,-1066.5,0.00014129,2]
[382672768,1756705839132,-830.29,0.00014129,2]
[382672769,1756705839142,-1204.97,0.00014129,2]
[382672770,1756705839152,-3257.21,0.00014129,2]
[382672771,1756705839161,-4980.36,0.00014129,2]
[382672772,1756705839172,-1963.55,0.00014129,2]
[382672773,1756705839181,-622.47,0.00014129,2]
[382672774,1756705839191,-1425.86,0.00014129,2]
[382672775,1756705839202,-480.0,0.00014129,2]
[382672776,1756705839211,-480.0,0.0001413,2]
[382672777,1756705839220,-480.0,0.0001413,2]
[382672778,1756705839230,-480.0,0.0001413,2]
[382672779,1756705839239,-720.62,0.0001413,2]
[382672780,1756705839249,-480.0,0.0001413,2]
[382672781,1756705839258,-1045.3,0.0001413,2]
[382672782,1756705839267,-700.16,0.0001413,2]
[382672783,1756705839277,-480.0,0.0001413,2]
[382672784,1756705839287,-480.0,0.0001413,2]
[382672785,1756705839297,-480.0,0.0001413,2]
[382672786,1756705839306,-480.0,0.0001413,2]
[382672787,1756705839316,-544.45,0.0001413,2]
[382672788,1756705839326,-724.58,0.0001413,2]
[382672789,1756705839336,-480.0,0.0001413,2]
[382672790,1756705839345,-480.0,0.0001413,2]
[382672791,1756705839355,-892.82,0.0001413,2]
[382672792,1756705839364,-480.0,0.0001413,2]
[382672793,1756705839373,-821.3,0.0001413,2]
[382672794,1756705839383,-809.36,0.0001413,2]
[382672795,1756705839392,-1025.49,0.0001413,2]
[382672796,1756705839402,-481.68766409,0.0001413,2]
[382672797,1756705839412,-568.86,0.0001413,2]
[382672798,1756705839421,-480.0,0.0001413,2]
[382672799,1756705839430,-480.0,0.0001413,2]
[382672800,1756705839439,-604.84,0.0001413,2]
[382672801,1756705839448,-820.88,0.0001413,2]
[382672802,1756705839458,-480.0,0.0001413,2]
[382672803,1756705839467,-480.0,0.0001413,2]
[382672804,1756705839476,-668.21,0.0001413,2]
[382672805,1756705839486,-480.0,0.0001413,2]
[382672806,1756705839495,-480.0,0.0001413,2]
[382672807,1756705839504,-480.0,0.0001413,2]
[382672808,1756705839514,-678.37,0.0001413,2]
[382672809,1756705839524,-705.04,0.0001413,2]
[382672810,1756705839533,-480.0,0.0001413,2]
[382672811,1756705839543,-780.52,0.0001413,2]
[382672812,1756705839552,-480.0,0.0001413,2]
[382672813,1756705839563,-480.0,0.0001413,2]
[382672814,1756705839573,-480.0,0.0001413,2]
[382672815,1756705839582,-480.0,0.0001413,2]
[382672816,1756705839591,-480.0,0.0001413,2]
[382672817,1756705839601,-827.91,0.0001413,2]
[382672818,1756705839610,-480.0,0.0001413,2]
[382672819,1756705839620,-480.0,0.0001413,2]
[382672820,1756705839629,-480.0,0.0001413,2]
[382672821,1756705839639,-480.0,0.0001413,2]
[382672822,1756705839649,-918.17,0.0001413,2]
[382672823,1756705839659,-1131.63,0.0001413,2]
[382672824,1756705839669,-480.0,0.0001413,2]
[382672825,1756705839679,-488.26,0.0001413,2]
[382672826,1756705839689,-480.0,0.0001413,2]
[382672827,1756705839699,-484.81447225,0.0001413,2]
[382672828,1756705839709,-480.0,0.0001413,2]
[382672829,1756705839719,-461.77904097,0.0001413,2]
[382672830,1756705839728,-480.0,0.0001413,2]
[382672831,1756705839739,-504.31541666,0.0001413,2]
[382672832,1756705839749,-850.44,0.0001413,2]
[382672833,1756705839758,-3629.01,0.0001413,2]
[382672834,1756705839768,-1000.0,0.00014131,2]
[382672835,1756705839777,-298.56355976,0.00014155,2]
[382672836,1756705839786,-151.0,0.00014155,2]
[382672837,1756705839795,-151.0,0.00014155,2]
[382672838,1756705839805,-151.0,0.00014155,2]
[382672839,1756705839815,-151.0,0.00014155,2]
[382672840,1756705839825,-282.23432,0.00014155,2]
[382672841,1756705839835,-151.0,0.00014155,2]
[382672842,1756705839844,-151.0,0.00014155,2]
[382672843,1756705839853,-151.0,0.00014155,2]
[382672844,1756705839863,-151.0,0.00014155,2]
[382672845,1756705839872,-151.0,0.00014155,2]
[382672846,1756705839882,-203.211685,0.00014155,2]
[382672848,1756705839892,-151.0,0.00014155,2]
[382672849,1756705839902,-203.211685,0.00014155,2]
[382672851,1756705839912,-203.211685,0.00014155,2]
[382672852,1756705839921,-203.211685,0.00014155,2]
[382672853,1756705839931,-1066.5,0.00014227,2]
[382672854,1756705839941,-504.8440215,0.00014228,2]
[382672855,1756705839951,-480.0,0.00014228,2]
[382672857,1756705839960,-1015.92,0.00014228,2]